[Event "23rd Hoogeveen Open 2019"]
[Site "Hoogeveen"]
[Date "2019.10.19"]
[Round "1.31"]
[White "Ricken, Katharina"]
[Black "Hilwerda, Jonas"]
[Result "0-1"]
[ECO "A15"]
[WhiteElo "1970"]
[BlackElo "2229"]
[Annotator "NA"]
[PlyCount "92"]
[EventDate "2019.10.19"]
[EventType "swiss"]
[EventCountry "NED"]
[SourceTitle "playchess.com"]
[Source "ChessBase"]
[SourceQuality "1"]
[TimeControl "40/5400+30:1800+30"]

1. Nf3 {[%emt 0:00:00]} Nf6 {[%emt 0:00:00]} 2. g3 {[%emt 0:00:00]} g6 {[%emt 0:00:00]} 3. b3 {[%emt 0:00:00]} Bg7 {[%emt 0:00:32]} 4. Bb2 {[%emt 0:00:00]} d6 {[%emt 0:01:25]} 5. d4 {[%emt 0:00:00]} b6 {[%emt 0:02:38]} 6. Bg2 {[%emt 0:00:00]} Bb7 {[%emt 0:00:04]} 7. O-O {[%emt 0:00:05]} O-O {[%emt 0:00:09]} 8. c4 {[%emt 0:00:38]} Nbd7 {[%emt 0:02:56]} 9. d5 {[%emt 0:04:57]} c5 {[%emt 0:17:27]} 10. Nc3 {[%emt 0:02:54]} a6 {[%emt 0:00:27]} 11. a4 {[%emt 0:00:22]} Qc7 {[%emt 0:01:13]} 12. Qc2 {[%emt 0:01:49]} Rad8 {[%emt 0:03:22]} 13. e4 {[%emt 0:02:18]} e5 {[%emt 0:01:10]} 14. Ne1 {[%emt 0:02:33]} Bc8 {[%emt 0:04:18]} 15. Nd3 {[%emt 0:00:51]} Nh5 {[%emt 0:04:22]} 16. Bf3 {[%emt 0:08:26]} Nhf6 {[%emt 0:04:17]} 17. Bg2 {[%emt 0:00:11]} Kh8 {[%emt 0:00:54]} 18. Rae1 {[%emt 0:01:47]} Nh5 {[%emt 0:03:41]} 19. Qe2 {[%emt 0:03:36]} Rde8 {[%emt 0:02:10]} 20. Bf3 {[%emt 0:07:09]} Nhf6 {[%emt 0:00:23]} 21. Bg2 {[%emt 0:00:12]} Ng8 {[%emt 0:00:19]} 22. Qc2 {[%emt 0:01:34]} f5 {[%emt 0:03:19]} 23. exf5 {[%emt 0:03:09]} gxf5 {[%emt 0:02:00]} 24. f4 {[%emt 0:00:50]} e4 {[%emt 0:01:16]} 25. Nf2 {[%emt 0:02:23]} Ndf6 {[%emt 0:00:31]} 26. Ncd1 {[%emt 0:02:44]} h5 {[%emt 0:02:30]} 27. Ne3 {[%emt 0:01:14]} Nh6 {[%emt 0:01:20]} 28. Bc3 {[%emt 0:06:02]} Qf7 {[%emt 0:11:17]} 29. Nh3 {[%emt 0:04:01]} h4 {[%emt 0:03:05]} 30. gxh4 {[%emt 0:06:05]} Qh5 {[%emt 0:06:00]} 31. Qf2 {[%emt 0:01:17]} Nfg4 {[%emt 0:01:39]} 32. Bxg7+ {[%emt 0:00:11]} Kxg7 {[%emt 0:00:02]} 33. Qg3 {[%emt 0:00:53]} Rh8 {[%emt 0:02:05]} 34. Nf2 {[%emt 0:03:33]} Kf7 {[%emt 0:02:40]} 35. Nexg4 {[%emt 0:02:20]} Nxg4 {[%emt 0:00:12]} 36. Nxg4 {[%emt 0:00:16]} Reg8 {[%emt 0:01:44]} 37. h3 {[%emt 0:09:40]} fxg4 {[%emt 0:00:16]} 38. f5 {[%emt 0:00:59]} gxh3 {[%emt 0:07:01]} 39. Qxh3 {[%emt 0:00:12]} Qxh4 {[%emt 0:00:30]} 40. Qxh4 {[%emt 0:00:52]} Rh7 {[%emt 0:00:02]} 41. Qh6 Rxh6 {[%emt 0:30:31]} 42. Re3 {[%emt 0:35:14]} Rh4 {[%emt 0:01:33]} 43. Rf2 {[%emt 0:03:42]} Kf6 {[%emt 0:01:18]} 44. Kf1 {[%emt 0:00:23]} Bxf5 {[%emt 0:00:31]} 45. Ke2 {[%emt 0:01:38]} Ke5 {[%emt 0:02:05]} 46. Bf1 {[%emt 0:00:35]} Rh2 {[%emt 0:07:13]} 0-1

[Event "23rd Hoogeveen Open 2019"]
[Site "Hoogeveen"]
[Date "2019.10.19"]
[Round "1.32"]
[White "Konings, Frans"]
[Black "Slagboom, Leandro"]
[Result "0-1"]
[ECO "D45"]
[WhiteElo "2198"]
[BlackElo "1954"]
[Annotator "NA"]
[PlyCount "88"]
[EventDate "2019.10.19"]
[EventType "swiss"]
[EventCountry "NED"]
[SourceTitle "playchess.com"]
[Source "ChessBase"]
[SourceQuality "1"]
[TimeControl "40/5400+30:1800+30"]

1. d4 {[%emt 0:00:00]} d5 {[%emt 0:00:00]} 2. c4 {[%emt 0:00:00]} c6 {[%emt 0:00:00]} 3. Nf3 {[%emt 0:00:00]} Nf6 {[%emt 0:00:01]} 4. e3 {[%emt 0:00:06]} e6 {[%emt 0:00:54]} 5. Nc3 {[%emt 0:00:06]} Nbd7 {[%emt 0:00:30]} 6. Qc2 {[%emt 0:00:07]} Bd6 {[%emt 0:00:47]} 7. g4 {[%emt 0:00:16]} h6 {[%emt 0:00:21]} 8. Bd2 {[%emt 0:00:10]} dxc4 {[%emt 0:00:48]} 9. Bxc4 {[%emt 0:00:07]} b5 {[%emt 0:00:11]} 10. Bb3 {[%emt 0:08:17]} Bb7 {[%emt 0:03:02]} 11. Rg1 {[%emt 0:00:26]} Rc8 {[%emt 0:04:12]} 12. Bxe6 {[%emt 0:01:07]} fxe6 {[%emt 0:05:00]} 13. Qg6+ {[%emt 0:00:55]} Kf8 {[%emt 0:00:33]} 14. g5 {[%emt 0:00:08]} Qe8 {[%emt 0:03:41]} 15. gxf6 {[%emt 0:04:36]} Qxg6 {[%emt 0:00:16]} 16. Rxg6 {[%emt 0:00:19]} Nxf6 {[%emt 0:03:11]} 17. Ne5 {[%emt 0:02:58]} a6 {[%emt 0:08:19]} 18. Rxf6+ {[%emt 0:18:35]} gxf6 {[%emt 0:00:22]} 19. Ng6+ {[%emt 0:00:06]} Kf7 {[%emt 0:03:53]} 20. Nxh8+ {[%emt 0:00:06]} Rxh8 {[%emt 0:00:06]} 21. Ne4 {[%emt 0:00:13]} Be7 {[%emt 0:00:27]} 22. f3 {[%emt 0:05:24]} c5 {[%emt 0:21:37]} 23. dxc5 {[%emt 0:07:01]} Bxe4 {[%emt 0:00:10]} 24. fxe4 {[%emt 0:00:05]} Bxc5 {[%emt 0:00:10]} 25. Rc1 {[%emt 0:00:05]} Bd6 {[%emt 0:00:29]} 26. Rc6 {[%emt 0:02:58]} Bxh2 {[%emt 0:00:35]} 27. Rxa6 {[%emt 0:00:09]} h5 {[%emt 0:02:23]} 28. Ra7+ {[%emt 0:01:03]} Kg6 {[%emt 0:01:03]} 29. Kf2 {[%emt 0:06:02]} h4 {[%emt 0:02:00]} 30. Kg2 {[%emt 0:00:21]} Bg3 {[%emt 0:14:51]} 31. Kh3 {[%emt 0:10:48]} Rd8 {[%emt 0:02:39]} 32. Ba5 {[%emt 0:03:41]} Rd3 {[%emt 0:05:50]} 33. Bc7 {[%emt 0:20:39]} Bxc7 {[%emt 0:06:32]} 34. Rxc7 {[%emt 0:00:07]} Rxe3+ {[%emt 0:00:09]} 35. Kxh4 {[%emt 0:00:05]} Rxe4+ {[%emt 0:00:08]} 36. Kg3 {[%emt 0:00:06]} Re2 {[%emt 0:01:45]} 37. b4 {[%emt 0:00:30]} Kf5 {[%emt 0:03:53]} 38. Rb7 {[%emt 0:00:17]} Re5 {[%emt 0:00:33]} 39. Kf3 {[%emt 0:00:09]} Rd5 {[%emt 0:00:35]} 40. Ke3 {[%emt 0:00:08]} e5 {[%emt 0:01:03]} 41. a3 {[%emt 0:30:39]} e4 {[%emt 0:30:50]} 42. Ke2 {[%emt 0:01:05]} Kf4 {[%emt 0:01:12]} 43. Rb6 {[%emt 0:01:14]} f5 {[%emt 0:00:34]} 44. Rb8 {[%emt 0:00:18]} e3 {[%emt 0:00:45]} 0-1

[Event "23rd Hoogeveen Open 2019"]
[Site "Hoogeveen"]
[Date "2019.10.19"]
[Round "1.33"]
[White "Vasse, Albert"]
[Black "Mueer, Sebastian"]
[Result "0-1"]
[ECO "B21"]
[WhiteElo "1934"]
[BlackElo "2194"]
[Annotator "NA"]
[PlyCount "64"]
[EventDate "2019.10.19"]
[EventType "swiss"]
[EventCountry "NED"]
[SourceTitle "playchess.com"]
[Source "ChessBase"]
[SourceQuality "1"]
[TimeControl "40/5400+30:1800+30"]

1. e4 {[%emt 0:00:00]} c5 {[%emt 0:00:00]} 2. d4 {[%emt 0:00:00]} cxd4 {[%emt 0:00:00]} 3. c3 {[%emt 0:00:00]} dxc3 {[%emt 0:01:01]} 4. Nxc3 {[%emt 0:00:03]} Nc6 {[%emt 0:00:18]} 5. Nf3 {[%emt 0:00:25]} d6 {[%emt 0:00:14]} 6. Bc4 {[%emt 0:00:11]} a6 {[%emt 0:00:10]} 7. O-O {[%emt 0:02:09]} Nf6 {[%emt 0:00:06]} 8. Qe2 {[%emt 0:01:03]} Bg4 {[%emt 0:01:31]} 9. Rd1 {[%emt 0:02:14]} e6 {[%emt 0:00:21]} 10. Bf4 {[%emt 0:11:14]} e5 {[%emt 0:12:44]} 11. Be3 {[%emt 0:02:24]} Be7 {[%emt 0:04:01]} 12. Rac1 {[%emt 0:03:58]} O-O {[%emt 0:12:31]} 13. Nd5 {[%emt 0:08:15]} Nxd5 {[%emt 0:04:28]} 14. Bxd5 {[%emt 0:02:12]} Qd7 {[%emt 0:13:31]} 15. Bb6 {[%emt 0:06:28]} Rac8 {[%emt 0:11:45]} 16. Qe3 {[%emt 0:04:30]} Qe8 {[%emt 0:16:23]} 17. Qb3 {[%emt 0:05:10]} Kh8 {[%emt 0:02:11]} 18. h3 {[%emt 0:13:12]} Bd7 {[%emt 0:02:10]} 19. g4 {[%emt 0:02:32]} Bd8 {[%emt 0:04:40]} 20. Kg2 {[%emt 0:07:20]} Qe7 {[%emt 0:06:25]} 21. Bxd8 {[%emt 0:04:12]} Nxd8 {[%emt 0:00:13]} 22. Bxb7 {[%emt 0:01:28]} Rxc1 {[%emt 0:03:57]} 23. Rxc1 {[%emt 0:00:18]} Bxg4 {[%emt 0:00:04]} 24. Bxa6 {[%emt 0:00:36]} Bh5 {[%emt 0:01:38]} 25. Bc8 {[%emt 0:04:11]} Ne6 {[%emt 0:00:46]} 26. Bxe6 {[%emt 0:07:22]} fxe6 {[%emt 0:00:01]} 27. Rc3 {[%emt 0:00:25]} Qf6 {[%emt 0:00:30]} 28. Re3 {[%emt 0:00:31]} d5 {[%emt 0:00:46]} 29. exd5 {[%emt 0:02:52]} e4 {[%emt 0:00:01]} 30. Nh2 {[%emt 0:03:54]} Qxf2+ {[%emt 0:00:31]} 31. Kh1 {[%emt 0:00:02]} Bf3+ {[%emt 0:00:51]} 32. Nxf3 {[%emt 0:00:21]} exf3 {[%emt 0:00:07]} 0-1

[Event "23rd Hoogeveen Open 2019"]
[Site "Hoogeveen"]
[Date "2019.10.19"]
[Round "1.34"]
[White "Adocchio, Giampiero"]
[Black "Labruyere, Roger"]
[Result "1-0"]
[ECO "B86"]
[WhiteElo "2184"]
[BlackElo "1932"]
[Annotator "NA"]
[PlyCount "73"]
[EventDate "2019.10.19"]
[EventType "swiss"]
[EventCountry "NED"]
[SourceTitle "playchess.com"]
[Source "ChessBase"]
[SourceQuality "1"]
[TimeControl "40/5400+30:1800+30"]

1. e4 {[%emt 0:00:58]} c5 {[%emt 0:00:00]} 2. Nf3 {[%emt 0:00:05]} d6 {[%emt 0:00:00]} 3. d4 {[%emt 0:00:04]} cxd4 {[%emt 0:00:00]} 4. Nxd4 {[%emt 0:00:05]} Nf6 {[%emt 0:00:00]} 5. Nc3 {[%emt 0:00:04]} a6 {[%emt 0:00:02]} 6. Bc4 {[%emt 0:00:06]} e6 {[%emt 0:00:30]} 7. Bb3 {[%emt 0:00:04]} Be7 {[%emt 0:00:46]} 8. g4 {[%emt 0:05:03]} O-O {[%emt 0:11:27]} 9. Qe2 {[%emt 0:05:47]} Nc6 {[%emt 0:04:52]} 10. Nxc6 {[%emt 0:03:36]} bxc6 {[%emt 0:02:30]} 11. Bg5 {[%emt 0:10:48]} e5 {[%emt 0:09:43]} 12. h3 {[%emt 0:03:25]} Nd7 {[%emt 0:07:41]} 13. Be3 {[%emt 0:01:40]} Qa5 {[%emt 0:06:54]} 14. O-O-O {[%emt 0:01:20]} Nc5 {[%emt 0:00:57]} 15. Bxc5 {[%emt 0:00:48]} Qxc5 {[%emt 0:00:06]} 16. h4 {[%emt 0:02:30]} Be6 {[%emt 0:06:50]} 17. g5 {[%emt 0:00:26]} Bxb3 {[%emt 0:01:09]} 18. axb3 {[%emt 0:00:12]} f5 {[%emt 0:03:35]} 19. f3 {[%emt 0:03:04]} fxe4 {[%emt 0:03:29]} 20. fxe4 {[%emt 0:01:24]} Rf4 {[%emt 0:01:54]} 21. Kb1 {[%emt 0:01:03]} a5 {[%emt 0:04:30]} 22. Rdf1 {[%emt 0:03:11]} Raf8 {[%emt 0:00:13]} 23. Rxf4 {[%emt 0:00:51]} Rxf4 {[%emt 0:00:38]} 24. Qa6 {[%emt 0:02:09]} g6 {[%emt 0:11:38]} 25. Qc8+ {[%emt 0:04:07]} Kg7 {[%emt 0:03:12]} 26. Qe6 {[%emt 0:00:14]} Rf7 {[%emt 0:03:07]} 27. Ka2 {[%emt 0:15:33]} Qe3 {[%emt 0:03:21]} 28. h5 {[%emt 0:02:22]} Qxg5 {[%emt 0:07:04]} 29. h6+ {[%emt 0:00:27]} Kg8 {[%emt 0:03:18]} 30. Rf1 {[%emt 0:00:13]} Qf4 {[%emt 0:01:25]} 31. Rxf4 {[%emt 0:00:08]} exf4 {[%emt 0:00:03]} 32. e5 {[%emt 0:06:11]} dxe5 {[%emt 0:00:26]} 33. Ne4 {[%emt 0:00:13]} f3 {[%emt 0:01:42]} 34. c3 {[%emt 0:00:25]} c5 {[%emt 0:01:28]} 35. c4 {[%emt 0:00:11]} g5 {[%emt 0:01:36]} 36. Ka3 {[%emt 0:01:28]} f2 {[%emt 0:01:22]} 37. Nxf2 {[%emt 0:00:07]} 1-0

[Event "23rd Hoogeveen Open 2019"]
[Site "Hoogeveen"]
[Date "2019.10.19"]
[Round "1.35"]
[White "Merkon, Oseb"]
[Black "Tabak, Stefan"]
[Result "0-1"]
[ECO "A88"]
[WhiteElo "1930"]
[BlackElo "2181"]
[Annotator "NA"]
[PlyCount "36"]
[EventDate "2019.10.19"]
[EventType "swiss"]
[EventCountry "NED"]
[SourceTitle "playchess.com"]
[Source "ChessBase"]
[SourceQuality "1"]
[TimeControl "40/5400+30:1800+30"]

1. c4 {[%emt 0:00:00]} f5 {[%emt 0:00:00]} 2. Nc3 {[%emt 0:00:00]} Nf6 {[%emt 0:00:00]} 3. g3 {[%emt 0:00:00]} g6 {[%emt 0:00:00]} 4. Bg2 {[%emt 0:00:00]} Bg7 {[%emt 0:00:00]} 5. Nf3 {[%emt 0:01:46]} d6 {[%emt 0:00:21]} 6. d4 {[%emt 0:00:30]} O-O {[%emt 0:00:11]} 7. O-O {[%emt 0:00:11]} c6 {[%emt 0:00:10]} 8. Rb1 {[%emt 0:07:10]} Qe8 {[%emt 0:01:01]} 9. b4 {[%emt 0:10:42]} e5 {[%emt 0:08:23]} 10. e3 {[%emt 0:07:06]} e4 {[%emt 0:02:06]} 11. Nd2 {[%emt 0:01:24]} Nbd7 {[%emt 0:02:21]} 12. c5 {[%emt 0:09:44]} d5 {[%emt 0:00:40]} 13. b5 {[%emt 0:00:37]} g5 {[%emt 0:01:49]} 14. f3 {[%emt 0:14:29]} exf3 {[%emt 0:08:46]} 15. Nxf3 {[%emt 0:00:42]} h6 {[%emt 0:01:01]} 16. a4 {[%emt 0:11:09]} Ne4 {[%emt 0:11:19]} 17. Nxe4 {[%emt 0:01:19]} fxe4 {[%emt 0:00:27]} 18. Ne1 {[%emt 0:03:23]} Nf6 {[%emt 0:00:25]} 0-1

[Event "23rd Hoogeveen Open 2019"]
[Site "Hoogeveen"]
[Date "2019.10.19"]
[Round "1.36"]
[White "Djukic, Sandra"]
[Black "Klaren, Duncan"]
[Result "1-0"]
[ECO "A65"]
[WhiteElo "2179"]
[BlackElo "1923"]
[Annotator "NA"]
[PlyCount "85"]
[EventDate "2019.10.19"]
[EventType "swiss"]
[EventCountry "NED"]
[SourceTitle "playchess.com"]
[Source "ChessBase"]
[SourceQuality "1"]
[TimeControl "40/5400+30:1800+30"]

1. d4 {[%emt 0:00:00]} Nf6 {[%emt 1:30:30]} 2. c4 {[%emt 0:00:30]} g6 {[%emt 0:00:30]} 3. Nc3 {[%emt 0:00:30]} Bg7 {[%emt 0:00:30]} 4. e4 {[%emt 0:00:30]} d6 {[%emt 0:00:30]} 5. Bd3 {[%emt 0:00:30]} O-O {[%emt 0:00:30]} 6. Nge2 {[%emt 0:00:30]} c5 {[%emt 0:00:30]} 7. d5 {[%emt 0:00:30]} e6 {[%emt 0:00:30]} 8. h3 {[%emt 0:00:30]} exd5 {[%emt 0:00:30]} 9. cxd5 {[%emt 0:00:30]} a6 {[%emt 0:00:30]} 10. a4 {[%emt 0:00:30]} Nbd7 {[%emt 0:00:30]} 11. O-O {[%emt 0:00:30]} Qc7 {[%emt 0:00:30]} 12. Be3 {[%emt 0:01:09]} Re8 {[%emt 0:00:00]} 13. Ng3 {[%emt 0:07:17]} h5 {[%emt 0:00:00]} 14. Re1 {[%emt 0:04:13]} Ne5 {[%emt 0:00:00]} 15. Bc2 {[%emt 0:01:34]} Bd7 {[%emt 0:00:00]} 16. f4 {[%emt 0:03:38]} Nc4 {[%emt 0:00:00]} 17. Bc1 {[%emt 0:00:35]} h4 {[%emt 0:00:00]} 18. Nge2 {[%emt 0:13:01]} b5 {[%emt 0:00:00]} 19. axb5 {[%emt 0:07:29]} axb5 {[%emt 0:00:00]} 20. Rxa8 {[%emt 0:00:05]} Rxa8 {[%emt 0:00:00]} 21. Bd3 {[%emt 0:07:30]} Na5 {[%emt 0:00:00]} 22. e5 {[%emt 0:21:40]} Nh5 {[%emt 0:00:00]} 23. e6 {[%emt 0:07:43]} Be8 {[%emt 0:00:00]} 24. Bxb5 {[%emt 0:04:35]} Qb6 {[%emt 0:00:00]} 25. exf7+ {[%emt 0:14:09]} Bxf7 {[%emt 0:00:00]} 26. Rf1 {[%emt 0:02:45]} Bd4+ {[%emt 0:00:00]} 27. Kh2 {[%emt 0:00:14]} Ng3 {[%emt 0:00:00]} 28. Rf3 {[%emt 0:00:02]} Bxd5 {[%emt 0:00:00]} 29. Nxd5 {[%emt 0:00:13]} Qxb5 {[%emt 0:00:00]} 30. Nxd4 {[%emt 0:00:22]} cxd4 {[%emt 0:00:00]} 31. Nc7 {[%emt 0:01:02]} Qc6 {[%emt 0:00:00]} 32. Nxa8 {[%emt 0:00:06]} Qxa8 {[%emt 0:00:00]} 33. b4 {[%emt 0:01:23]} Nc6 {[%emt 0:00:00]} 34. b5 {[%emt 0:00:04]} Ne7 {[%emt 0:00:00]} 35. Qxd4 {[%emt 0:00:36]} Nef5 {[%emt 0:00:00]} 36. Qf6 {[%emt 0:00:54]} Qe8 {[%emt 0:00:00]} 37. Qc3 {[%emt 0:00:38]} Qxb5 {[%emt 0:00:00]} 38. Qc8+ {[%emt 0:00:29]} Kg7 {[%emt 0:00:00]} 39. Rc3 {[%emt 0:00:28]} Nf1+ {[%emt 0:00:00]} 40. Kg1 {[%emt 0:00:23]} Qb6+ {[%emt 0:00:00]} 41. Kxf1 {[%emt 0:30:14]} Ng3+ {[%emt 0:17:45]} 42. Rxg3 {[%emt 0:00:38]} hxg3 {[%emt 0:00:08]} 43. Qc3+ {[%emt 0:00:03]} 1-0

[Event "23rd Hoogeveen Open 2019"]
[Site "Hoogeveen"]
[Date "2019.10.19"]
[Round "1.37"]
[White "De Winter, Arthur"]
[Black "Blagojevic, Tijana"]
[Result "0-1"]
[ECO "C67"]
[WhiteElo "1896"]
[BlackElo "2151"]
[Annotator "NA"]
[PlyCount "76"]
[EventDate "2019.10.19"]
[EventType "swiss"]
[EventCountry "NED"]
[SourceTitle "playchess.com"]
[Source "ChessBase"]
[SourceQuality "1"]
[TimeControl "40/5400+30:1800+30"]

1. e4 {[%emt 0:00:00]} e5 {[%emt 0:00:00]} 2. Nf3 {[%emt 0:00:00]} Nc6 {[%emt 0:00:00]} 3. Bb5 {[%emt 0:00:00]} Nf6 {[%emt 0:00:34]} 4. O-O {[%emt 0:00:00]} Nxe4 {[%emt 0:00:05]} 5. Re1 {[%emt 0:00:03]} Nd6 {[%emt 0:00:05]} 6. Nxe5 {[%emt 0:00:17]} Be7 {[%emt 0:00:07]} 7. Bf1 {[%emt 0:00:16]} Nf5 {[%emt 0:01:06]} 8. Nf3 {[%emt 0:02:27]} O-O {[%emt 0:00:53]} 9. d4 {[%emt 0:00:11]} d5 {[%emt 0:00:22]} 10. c3 {[%emt 0:00:51]} Bd6 {[%emt 0:08:10]} 11. Bd3 {[%emt 0:02:57]} Nh4 {[%emt 0:09:03]} 12. g3 {[%emt 0:04:02]} Nf5 {[%emt 0:05:10]} 13. Nbd2 {[%emt 0:08:22]} Qf6 {[%emt 0:03:57]} 14. Nf1 {[%emt 0:02:41]} h6 {[%emt 0:00:57]} 15. Ne3 {[%emt 0:05:05]} Nxe3 {[%emt 0:01:40]} 16. Bxe3 {[%emt 0:00:24]} Bg4 {[%emt 0:02:00]} 17. Be2 {[%emt 0:00:50]} Rfe8 {[%emt 0:00:47]} 18. Nd2 {[%emt 0:04:21]} Be6 {[%emt 0:06:54]} 19. Bb5 {[%emt 0:16:43]} a6 {[%emt 0:03:25]} 20. Bxc6 {[%emt 0:00:09]} bxc6 {[%emt 0:00:03]} 21. Nb3 {[%emt 0:04:05]} Qg6 {[%emt 0:04:15]} 22. Nc5 {[%emt 0:08:28]} Bh3 {[%emt 0:03:37]} 23. Nd3 {[%emt 0:07:08]} Re4 {[%emt 0:07:29]} 24. Qf3 {[%emt 0:08:23]} Rae8 {[%emt 0:04:23]} 25. Nc5 {[%emt 0:06:57]} Bg4 {[%emt 0:08:15]} 26. Qg2 {[%emt 0:00:11]} Bxc5 {[%emt 0:04:11]} 27. dxc5 {[%emt 0:00:18]} Qf5 {[%emt 0:00:35]} 28. h4 {[%emt 0:05:38]} Bf3 {[%emt 0:02:46]} 29. Qf1 {[%emt 0:01:23]} g5 {[%emt 0:00:56]} 30. Bd2 {[%emt 0:05:01]} gxh4 {[%emt 0:02:10]} 31. Bxh6 {[%emt 0:01:42]} hxg3 {[%emt 0:02:21]} 32. fxg3 {[%emt 0:01:37]} Qh5 {[%emt 0:03:18]} 33. Rxe4 {[%emt 0:03:21]} Rxe4 {[%emt 0:01:14]} 34. Bf4 {[%emt 0:00:27]} Qh1+ {[%emt 0:02:06]} 35. Kf2 {[%emt 0:00:04]} Re2+ {[%emt 0:00:13]} 36. Qxe2 {[%emt 0:00:06]} Qg2+ {[%emt 0:00:03]} 37. Ke3 {[%emt 0:00:09]} Qxe2+ {[%emt 0:00:08]} 38. Kd4 {[%emt 0:00:06]} Qe4# {[%emt 0:00:08]} 0-1

[Event "23rd Hoogeveen Open 2019"]
[Site "Hoogeveen"]
[Date "2019.10.19"]
[Round "1.38"]
[White "Giacomini, Hector"]
[Black "Achuthan, Dylan"]
[Result "1-0"]
[ECO "A48"]
[WhiteElo "2145"]
[BlackElo "1865"]
[Annotator "NA"]
[PlyCount "61"]
[EventDate "2019.10.19"]
[EventType "swiss"]
[EventCountry "NED"]
[SourceTitle "playchess.com"]
[Source "ChessBase"]
[SourceQuality "1"]
[TimeControl "40/5400+30:1800+30"]

1. Nf3 {[%emt 0:00:00]} c5 {[%emt 0:00:00]} 2. e3 {[%emt 0:00:00]} g6 {[%emt 0:01:56]} 3. d4 {[%emt 0:00:00]} Bg7 {[%emt 0:01:20]} 4. Be2 {[%emt 0:00:18]} Nf6 {[%emt 0:00:30]} 5. O-O {[%emt 0:00:30]} O-O {[%emt 0:00:30]} 6. dxc5 {[%emt 0:00:30]} Qa5 {[%emt 0:00:30]} 7. a3 {[%emt 0:03:00]} Qxc5 {[%emt 0:05:27]} 8. b4 {[%emt 0:03:21]} Qb6 {[%emt 0:06:11]} 9. Bb2 {[%emt 0:02:00]} d6 {[%emt 0:02:14]} 10. Nbd2 {[%emt 0:04:50]} Bd7 {[%emt 0:02:55]} 11. c4 {[%emt 0:01:58]} a5 {[%emt 0:05:08]} 12. b5 {[%emt 0:08:55]} a4 {[%emt 0:01:32]} 13. Rc1 {[%emt 0:01:06]} Rc8 {[%emt 0:02:42]} 14. h3 {[%emt 0:10:08]} e5 {[%emt 0:04:34]} 15. Ng5 {[%emt 0:06:14]} Be8 {[%emt 0:12:11]} 16. Nde4 {[%emt 0:02:45]} Nxe4 {[%emt 0:07:18]} 17. Nxe4 {[%emt 0:00:06]} Rd8 {[%emt 0:01:15]} 18. Nc3 {[%emt 0:02:09]} Qa7 {[%emt 0:08:32]} 19. Nd5 {[%emt 0:07:27]} b6 {[%emt 0:05:14]} 20. Bf3 {[%emt 0:01:21]} f5 {[%emt 0:05:31]} 21. Nxb6 {[%emt 0:14:53]} Qxb6 {[%emt 0:04:53]} 22. Bxa8 {[%emt 0:00:10]} Nd7 {[%emt 0:01:38]} 23. Bd5+ {[%emt 0:00:34]} Kh8 {[%emt 0:00:09]} 24. Qxa4 {[%emt 0:00:27]} Nc5 {[%emt 0:00:18]} 25. Qc2 {[%emt 0:00:46]} e4 {[%emt 0:02:24]} 26. Bxg7+ {[%emt 0:00:48]} Kxg7 {[%emt 0:00:01]} 27. Qc3+ {[%emt 0:02:43]} Kh6 {[%emt 0:00:00]} 28. Qf6 {[%emt 0:01:05]} Nd3 {[%emt 0:00:59]} 29. Rc3 {[%emt 0:03:48]} Nc5 {[%emt 0:01:13]} 30. Qf8+ {[%emt 0:04:45]} Kh5 {[%emt 0:00:54]} 31. g4+ {[%emt 0:02:15]} 1-0

[Event "23rd Hoogeveen Open 2019"]
[Site "Hoogeveen"]
[Date "2019.10.20"]
[Round "2.1"]
[White "Basso, Pier Luigi"]
[Black "Dixit, Nikhil"]
[Result "1/2-1/2"]
[ECO "E81"]
[WhiteElo "2575"]
[BlackElo "2358"]
[Annotator "ChessBase"]
[PlyCount "75"]
[EventDate "2019.10.19"]
[EventType "swiss"]
[EventCountry "NED"]
[SourceTitle "playchess.com"]
[Source "ChessBase"]
[SourceQuality "1"]
[TimeControl "40/5400+30:1800+30"]

1. d4 {[%emt 0:21:17]} Nf6 {[%emt 0:00:02]} 2. c4 {[%emt 0:00:39]} g6 {[%emt 0:00:08]} 3. f3 {[%emt 0:00:33]} Bg7 {[%emt 0:00:09]} 4. e4 {[%emt 0:00:05]} d6 {[%emt 0:00:04]} 5. Nc3 {[%emt 0:00:04]} O-O {[%emt 0:00:07]} 6. Nge2 {[%emt 0:00:04]} c5 {[%emt 0:02:51]} 7. d5 {[%emt 0:00:12]} Nbd7 {[%emt 0:00:59]} 8. Ng3 {[%emt 0:00:41]} h5 {[%emt 0:04:37]} 9. Be2 {[%emt 0:00:58]} h4 {[%emt 0:06:42]} 10. Nf1 {[%emt 0:00:02]} Re8 {[%emt 0:01:41]} 11. Bg5 {[%emt 0:02:46]} h3 {[%emt 0:06:07]} 12. g4 {[%emt 0:02:13]} e6 {[%emt 0:03:36]} 13. Ng3 {[%emt 0:06:24]} exd5 {[%emt 0:05:17]} 14. cxd5 {[%emt 0:00:27]} b5 {[%emt 0:06:20]} 15. Bxb5 {[%emt 0:06:28]} Nxe4 {[%emt 0:09:00]} 16. Ngxe4 {[%emt 0:06:19]} Qxg5 {[%emt 0:03:52]} 17. O-O {[%emt 0:07:03]} Qf4 {[%emt 0:04:35]} 18. Qc1 {[%emt 0:03:12]} Qxc1 {[%emt 0:18:09]} 19. Raxc1 {[%emt 0:00:08]} Be5 {[%emt 0:00:51]} 20. f4 {[%emt 0:08:43]} Bd4+ {[%emt 0:01:01]} 21. Kh1 {[%emt 0:00:06]} Bxc3 {[%emt 0:15:24]} 22. Nxd6 {[%emt 0:06:43]} Bxb2 {[%emt 0:01:49]} 23. Nxe8 {[%emt 0:00:02]} Bxc1 {[%emt 0:01:12]} 24. Rxc1 {[%emt 0:00:38]} Kf8 {[%emt 0:01:18]} 25. Bxd7 {[%emt 0:05:23]} Bxd7 {[%emt 0:00:15]} 26. Nf6 {[%emt 0:00:01]} Ke7 {[%emt 0:01:16]} 27. g5 {[%emt 0:01:43]} Rb8 {[%emt 0:03:45]} 28. d6+ {[%emt 0:10:08]} Kd8 {[%emt 0:02:35]} 29. Kg1 Rb2 {[%emt 0:00:06]} 30. Rxc5 {[%emt 0:00:02]} Rg2+ 31. Kf1 {[%emt 0:00:12]} Rxh2 {[%emt 0:00:01]} 32. Rc7 {[%emt 0:00:08]} Bb5+ {[%emt 0:00:03]} 33. Kg1 Rd2 {[%emt 0:00:17]} 34. Ne4 {[%emt 0:00:18]} Rd4 {[%emt 0:00:15]} 35. Re7 {[%emt 0:00:10]} Bc6 {[%emt 0:00:02]} 36. Nf2 {[%emt 0:00:11]} Rxf4 {[%emt 0:00:19]} 37. Nxh3 {[%emt 0:00:03]} Rd4 {[%emt 0:00:18]} 38. Nf2 1/2-1/2

[Event "23rd Hoogeveen Open 2019"]
[Site "Hoogeveen"]
[Date "2019.10.20"]
[Round "2.2"]
[White "Moksh Amit Doshi"]
[Black "Pruijssers, Roeland"]
[Result "1/2-1/2"]
[ECO "A87"]
[WhiteElo "2328"]
[BlackElo "2550"]
[Annotator "ChessBase"]
[PlyCount "32"]
[EventDate "2019.10.19"]
[EventType "swiss"]
[EventCountry "NED"]
[SourceTitle "playchess.com"]
[Source "ChessBase"]
[SourceQuality "1"]
[TimeControl "40/5400+30:1800+30"]

1. d4 {[%emt 0:00:00]} f5 {[%emt 0:00:00]} 2. g3 {[%emt 0:00:28]} Nf6 {[%emt 0:00:04]} 3. Bg2 {[%emt 0:00:07]} g6 {[%emt 0:00:30]} 4. Nf3 {[%emt 0:00:08]} Bg7 {[%emt 0:00:08]} 5. O-O {[%emt 0:00:07]} O-O {[%emt 0:00:10]} 6. c4 {[%emt 0:00:16]} e6 {[%emt 0:03:17]} 7. Nc3 {[%emt 0:02:34]} d6 {[%emt 0:03:41]} 8. b3 {[%emt 0:04:36]} Nc6 {[%emt 0:01:58]} 9. Bb2 {[%emt 0:03:08]} e5 {[%emt 0:08:00]} 10. dxe5 {[%emt 0:01:08]} dxe5 {[%emt 0:00:29]} 11. Nd5 {[%emt 0:09:58]} e4 {[%emt 0:04:15]} 12. Nxf6+ {[%emt 0:01:41]} Bxf6 {[%emt 0:01:41]} 13. Qxd8 {[%emt 0:00:08]} Bxd8 {[%emt 0:08:17]} 14. Nd4 {[%emt 0:00:38]} Bf6 {[%emt 0:00:09]} 15. Rad1 {[%emt 0:03:11]} Kf7 {[%emt 0:03:33]} 16. Ba1 {[%emt 0:03:27]} Nxd4 {[%emt 0:04:36]} 1/2-1/2